fUST/lending_fUST_20250528
["ID","MTS","AMOUNT","RATE_DAILY","PERIOD"]
[362625845,1748380253756,-430.0,0.00020273,2]
[362625847,1748380253766,-430.0,0.00020273,2]
[362625849,1748380253776,-1491.83,0.00020273,2]
[362625851,1748380253786,-945.81,0.00020273,2]
[362625853,1748380253795,-430.0,0.00020273,2]
[362625855,1748380253805,-166.0,0.00020274,2]
[362625857,1748380253815,-510.2538317,0.00020351,2]
[362625859,1748380253824,-500.0,0.00020351,2]
[362625861,1748380253833,-500.0,0.00020353,2]
[362625863,1748380253842,-500.0,0.00020353,2]
[362625877,1748380253961,-2846.06634161,0.00020417,3]
[362625879,1748380253971,-500.0,0.00020433,2]
[362625881,1748380253981,-1000.0,0.00020433,2]
[362625883,1748380253990,-500.0,0.00020433,2]
[362625885,1748380254001,-215.0738,0.00020535,2]
[362625887,1748380254010,-160.0,0.00020546,2]
[362625889,1748380254019,-151.0,0.00020547,2]
[362625891,1748380254028,-430.0,0.00020547,2]
[362625893,1748380254038,-390.64,0.00020547,2]
[362625895,1748380254048,-430.0,0.00020547,2]
[362625897,1748380254057,-430.0,0.00020547,2]
[362625899,1748380254067,-430.0,0.00020547,2]
[362625901,1748380254076,-430.0,0.00020547,2]
[362625903,1748380254086,-430.0,0.00020547,2]
[362625905,1748380254096,-489.24,0.00020547,2]
[362625907,1748380254105,-604.56,0.00020547,2]
[362625909,1748380254115,-255.8863668,0.00020547,2]
[362625911,1748380254125,-1698.09,0.00020547,2]
[362625913,1748380254134,-430.0,0.00020547,2]
[362625915,1748380254144,-1719.24,0.00020547,2]
[362625917,1748380254154,-165.35998316,0.00020547,2]
[362625919,1748380254163,-430.0,0.00020547,2]
[362625921,1748380254174,-594.93,0.00020547,2]
[362625922,1748380254183,-430.0,0.00020547,2]
[362625923,1748380254194,-430.0,0.00020547,2]
[362625924,1748380254203,-430.0,0.00020547,2]
[362625925,1748380254213,-430.0,0.00020547,2]
[362625926,1748380254223,-450.76,0.00020547,2]
[362625927,1748380254233,-1234.96,0.00020547,2]
[362625928,1748380254242,-589.76,0.00020547,2]
[362625929,1748380254252,-3137.36,0.00020547,2]
[362625930,1748380254262,-430.0,0.00020547,2]
[362625931,1748380254271,-610.53,0.00020547,2]
[362625932,1748380254281,-430.0,0.00020547,2]
[362625933,1748380254291,-430.0,0.00020547,2]
[362625934,1748380254301,-1076.95,0.00020547,2]
[362625935,1748380254313,-1977.74,0.00020547,2]
[362625936,1748380254323,-430.0,0.00020547,2]
[362625937,1748380254333,-800.9,0.00020547,2]
[362625938,1748380254343,-430.0,0.00020547,2]
[362625939,1748380254353,-430.0,0.00020547,2]
[362625940,1748380254365,-488.74,0.00020547,2]
[362625941,1748380254374,-430.0,0.00020547,2]
[362625942,1748380254385,-430.0,0.00020547,2]
[362625943,1748380254396,-430.0,0.00020547,2]
[362625944,1748380254405,-430.0,0.00020547,2]
[362625945,1748380254415,-430.0,0.00020547,2]
[362625946,1748380254425,-430.0,0.00020547,2]
[362625947,1748380254434,-430.0,0.00020547,2]
[362625948,1748380254445,-523.7,0.00020547,2]
[362625949,1748380254454,-381.25926071,0.00020547,2]
[362625950,1748380254464,-712.35,0.00020547,2]
[362625951,1748380254475,-430.0,0.00020547,2]
[362625952,1748380254484,-535.44,0.00020547,2]
[362625953,1748380254494,-933.8,0.00020547,2]
[362625954,1748380254503,-441.93,0.00020547,2]
[362625955,1748380254513,-1210.84,0.00020547,2]
[362625956,1748380254523,-430.0,0.00020547,2]
[362625957,1748380254532,-430.0,0.00020547,2]
[362625958,1748380254543,-430.0,0.00020547,2]
[362625959,1748380254552,-430.0,0.00020547,2]
[362625960,1748380254562,-626.26,0.00020547,2]
[362625961,1748380254571,-430.0,0.00020547,2]
[362625962,1748380254580,-430.0,0.00020547,2]
[362625963,1748380254590,-430.0,0.00020547,2]
[362625964,1748380254600,-430.0,0.00020547,2]
[362625965,1748380254609,-430.0,0.00020547,2]
[362625966,1748380254619,-430.0,0.00020547,2]
[362625967,1748380254629,-430.0,0.00020547,2]
[362625968,1748380254639,-1491.83,0.00020547,2]
[362625969,1748380254648,-945.81,0.00020547,2]
[362625970,1748380254658,-430.0,0.00020547,2]
[362625971,1748380254668,-212.62946336,0.00020555,3]
[362625972,1748380254678,-842.5625,0.00020555,3]
[362625973,1748380254687,-12656.54583329,0.00020555,3]
[362625974,1748380254697,-151.0,0.00020568,2]
[362625975,1748380254706,-2846.06634161,0.0002059,3]
[362625976,1748380254716,-151.0,0.000206,3]
[362625977,1748380254726,-8584.39,0.00020707,2]
[362625978,1748380254736,-1543.29779217,0.00020741,2]
[362625979,1748380254746,-2846.06634161,0.00020762,3]
[362625980,1748380254756,-297.095476,0.00020821,2]
[362625981,1748380254766,-430.0,0.00020821,2]
[362625982,1748380254776,-430.0,0.00020821,2]
[362625983,1748380254786,-430.0,0.00020821,2]
[362625984,1748380254795,-430.0,0.00020821,2]
[362625985,1748380254805,-430.0,0.00020821,2]
[362625986,1748380254815,-430.0,0.00020821,2]
[362625987,1748380254833,-489.24,0.00020821,2]
[362625989,1748380254849,-604.56,0.00020821,2]
[362625991,1748380254864,-1698.09,0.00020821,2]
[362625993,1748380254877,-430.0,0.00020821,2]
[362625996,1748380254893,-1719.24,0.00020821,2]
[362625999,1748380254907,-430.0,0.00020821,2]
[362626001,1748380254923,-594.93,0.00020821,2]
[362626004,1748380254938,-430.0,0.00020821,2]
[362626006,1748380254953,-430.0,0.00020821,2]
[362626009,1748380254970,-430.0,0.00020821,2]
[362626012,1748380254984,-430.0,0.00020821,2]
[362626014,1748380254999,-450.76,0.00020821,2]
[362626016,1748380255012,-1234.96,0.00020821,2]
[362626019,1748380255027,-589.76,0.00020821,2]
[362626022,1748380255042,-3137.36,0.00020821,2]
[362626024,1748380255056,-430.0,0.00020821,2]
[362626026,1748380255068,-610.53,0.00020821,2]
[362626029,1748380255082,-430.0,0.00020821,2]
[362626031,1748380255095,-1076.95,0.00020821,2]
[362626032,1748380255110,-1977.74,0.00020821,2]
[362626033,1748380255125,-430.0,0.00020821,2]
[362626034,1748380255141,-800.9,0.00020821,2]
[362626035,1748380255158,-430.0,0.00020821,2]
[362626036,1748380255174,-430.0,0.00020821,2]
[362626037,1748380255186,-488.74,0.00020821,2]
[362626038,1748380255197,-430.0,0.00020821,2]
[362626039,1748380255209,-502.62,0.00020821,2]
[362626040,1748380255227,-430.0,0.00020821,2]
[362626041,1748380255242,-430.0,0.00020821,2]
[362626042,1748380255254,-430.0,0.00020821,2]
[362626043,1748380255266,-430.0,0.00020821,2]
[362626044,1748380255279,-523.7,0.00020821,2]
[362626045,1748380255295,-430.0,0.00020821,2]
[362626046,1748380255306,-712.35,0.00020821,2]
[362626047,1748380255322,-430.0,0.00020821,2]
[362626048,1748380255334,-535.44,0.00020821,2]
[362626049,1748380255347,-933.8,0.00020821,2]
[362626050,1748380255360,-441.93,0.00020821,2]
[362626051,1748380255373,-1210.84,0.00020821,2]
[362626052,1748380255387,-430.0,0.00020821,2]
[362626053,1748380255401,-430.0,0.00020821,2]
[362626054,1748380255414,-430.0,0.00020821,2]
[362626055,1748380255426,-430.0,0.00020821,2]
[362626056,1748380255438,-626.26,0.00020821,2]
[362626057,1748380255451,-430.0,0.00020821,2]
[362626058,1748380255464,-430.0,0.00020821,2]
[362626059,1748380255477,-430.0,0.00020821,2]
[362626060,1748380255489,-430.0,0.00020821,2]
[362626061,1748380255501,-426.02297894,0.00020821,2]
[362626062,1748380255514,-430.0,0.00020821,2]
[362626063,1748380255526,-430.0,0.00020821,2]
[362626064,1748380255539,-1491.83,0.00020821,2]
[362626065,1748380255551,-945.81,0.00020821,2]
[362626066,1748380255564,-473.03,0.00020821,2]
[362626067,1748380255576,-420.0,0.00020898,2]
[362626068,1748380255589,-151.0,0.000209,4]
[362626069,1748380255601,-2230.0,0.0002092,2]
[362626070,1748380255614,-708.0,0.0002092,2]
[362626071,1748380255626,-158.519316,0.00020928,2]
[362626072,1748380255640,-2846.06634161,0.00020934,4]
[362626073,1748380255653,-3000.0,0.00021,2]
[362626074,1748380255666,-364.494,0.00021,2]
[362626075,1748380255679,-3000.0,0.0002101,2]
[362626076,1748380255691,-1000.0,0.00021019,2]
[362626077,1748380255704,-1000.0,0.00021019,7]
[362626078,1748380255716,-1000.0,0.00021019,7]
[362626079,1748380255729,-3000.0,0.0002102,2]
[362626080,1748380255742,-3000.0,0.0002103,2]
[362626081,1748380255755,-3000.0,0.0002104,2]
[362626082,1748380255768,-3000.0,0.0002105,2]
[362626083,1748380255781,-3000.0,0.0002106,2]
[362626084,1748380255793,-3000.0,0.0002107,2]
[362626085,1748380255806,-3000.0,0.0002108,2]
[362626086,1748380255819,-3000.0,0.0002109,2]
[362626087,1748380255831,-430.0,0.00021095,2]
[362626088,1748380255844,-430.0,0.00021095,2]
[362626089,1748380255857,-430.0,0.00021095,2]
[362626090,1748380255870,-430.0,0.00021095,2]
[362626091,1748380255883,-168.76657168,0.00021095,2]
[362626092,1748380255896,-430.0,0.00021095,2]
[362626093,1748380255908,-489.24,0.00021095,2]
[362626094,1748380255921,-604.56,0.00021095,2]
[362626095,1748380255934,-1698.09,0.00021095,2]
[362626096,1748380255947,-430.0,0.00021095,2]
[362626097,1748380255961,-1719.24,0.00021095,2]
[362626098,1748380255971,-430.0,0.00021095,2]
[362626099,1748380255980,-594.93,0.00021095,2]
[362626100,1748380255990,-481.07,0.00021095,2]
[362626117,1748380256185,-430.0,0.00021095,2]
[362626120,1748380256208,-430.0,0.00021095,2]
[362626122,1748380256218,-430.0,0.00021095,2]
[362626124,1748380256228,-450.76,0.00021095,2]
[362626126,1748380256237,-1234.96,0.00021095,2]
[362626128,1748380256247,-589.76,0.00021095,2]
[362626130,1748380256257,-3137.36,0.00021095,2]
[362626132,1748380256266,-430.0,0.00021095,2]
[362626134,1748380256275,-610.53,0.00021095,2]
[362626136,1748380256285,-430.0,0.00021095,2]
[362626138,1748380256295,-1076.95,0.00021095,2]
[362626140,1748380256305,-1977.74,0.00021095,2]
[362626142,1748380256322,-430.0,0.00021095,2]
[362626144,1748380256337,-800.9,0.00021095,2]
[362626146,1748380256347,-430.0,0.00021095,2]
[362626148,1748380256356,-430.0,0.00021095,2]
[362626150,1748380256365,-488.74,0.00021095,2]
[362626152,1748380256375,-430.0,0.00021095,2]
[362626154,1748380256384,-430.0,0.00021095,2]
[362626156,1748380256393,-472.15142121,0.00021095,2]
[362626158,1748380256403,-430.0,0.00021095,2]
[362626159,1748380256412,-430.0,0.00021095,2]
[362626161,1748380256421,-523.7,0.00021095,2]
[362626164,1748380256431,-430.0,0.00021095,2]
[362626165,1748380256440,-712.35,0.00021095,2]
[362626167,1748380256449,-430.0,0.00021095,2]
[362626169,1748380256460,-535.44,0.00021095,2]
[362626171,1748380256469,-933.8,0.00021095,2]
[362626173,1748380256478,-441.93,0.00021095,2]
[362626175,1748380256487,-1210.84,0.00021095,2]
[362626177,1748380256496,-430.0,0.00021095,2]
[362626179,1748380256505,-430.0,0.00021095,2]
[362626180,1748380256514,-430.0,0.00021095,2]
[362626181,1748380256523,-430.0,0.00021095,2]
[362626182,1748380256532,-626.26,0.00021095,2]
[362626183,1748380256542,-430.0,0.00021095,2]
[362626184,1748380256551,-430.0,0.00021095,2]
[362626185,1748380256560,-430.0,0.00021095,2]
[362626186,1748380256569,-430.0,0.00021095,2]
[362626187,1748380256579,-430.0,0.00021095,2]
[362626188,1748380256588,-1491.83,0.00021095,2]
[362626190,1748380256597,-945.81,0.00021095,2]
[362626192,1748380256607,-3000.0,0.000211,2]
[362626194,1748380256616,-2846.06634161,0.00021107,4]
[362626196,1748380256625,-3000.0,0.0002111,2]
[362626198,1748380256634,-3000.0,0.0002112,2]
[362626200,1748380256643,-3000.0,0.0002113,2]
[362626202,1748380256652,-3000.0,0.0002114,2]
[362626204,1748380256662,-3000.0,0.0002115,2]
[362626207,1748380256672,-3000.0,0.0002116,2]
[362626208,1748380256681,-1000.0,0.00021164,2]
[362626210,1748380256692,-3000.0,0.0002117,2]
[362626212,1748380256701,-3000.0,0.0002118,2]
[362626214,1748380256710,-3000.0,0.0002119,2]
[362626216,1748380256720,-3000.0,0.000212,2]
[362626218,1748380256730,-151.0,0.000212,4]
[362626220,1748380256739,-3000.0,0.0002121,2]
[362626222,1748380256749,-3000.0,0.0002122,2]
[362626224,1748380256758,-3000.0,0.0002123,2]
[362626226,1748380256767,-3000.0,0.0002124,2]
[362626228,1748380256776,-3000.0,0.0002125,2]
[362626230,1748380256785,-5334.436218,0.0002126,2]
[362626232,1748380256795,-2846.06634161,0.00021279,5]
[362626234,1748380256804,-430.0,0.00021369,2]
[362626236,1748380256813,-430.0,0.00021369,2]
[362626238,1748380256823,-430.0,0.00021369,2]
[362626240,1748380256832,-430.0,0.00021369,2]
[362626242,1748380256842,-430.0,0.00021369,2]
[362626244,1748380256852,-489.24,0.00021369,2]
[362626245,1748380256861,-604.56,0.00021369,2]
[362626246,1748380256871,-1698.09,0.00021369,2]
[362626247,1748380256880,-430.0,0.00021369,2]
[362626248,1748380256890,-1719.24,0.00021369,2]
[362626249,1748380256899,-430.0,0.00021369,2]
[362626250,1748380256908,-594.93,0.00021369,2]
[362626251,1748380256918,-430.0,0.00021369,2]
[362626253,1748380256927,-430.0,0.00021369,2]
[362626254,1748380256936,-430.0,0.00021369,2]
[362626256,1748380256945,-450.76,0.00021369,2]
[362626258,1748380256955,-1234.96,0.00021369,2]
[362626259,1748380256964,-589.76,0.00021369,2]
[362626260,1748380256973,-3137.36,0.00021369,2]
[362626261,1748380256983,-430.0,0.00021369,2]
[362626262,1748380256992,-610.53,0.00021369,2]
[362626263,1748380257001,-430.0,0.00021369,2]
[362626264,1748380257010,-1076.95,0.00021369,2]
[362626265,1748380257020,-1977.74,0.00021369,2]
[362626266,1748380257030,-430.0,0.00021369,2]
[362626267,1748380257039,-800.9,0.00021369,2]
[362626268,1748380257049,-315.92,0.00021369,2]
[362626269,1748380257058,-430.0,0.00021369,2]
[362626270,1748380257068,-488.74,0.00021369,2]
[362626271,1748380257078,-185.09,0.00021369,2]
[362626272,1748380257087,-430.0,0.00021369,2]
[362626274,1748380257096,-430.0,0.00021369,2]
[362626275,1748380257106,-430.0,0.00021369,2]
[362626276,1748380257115,-523.7,0.00021369,2]
[362626277,1748380257124,-430.0,0.00021369,2]
[362626278,1748380257134,-712.35,0.00021369,2]
[362626279,1748380257143,-430.0,0.00021369,2]
[362626280,1748380257152,-535.44,0.00021369,2]
[362626281,1748380257162,-933.8,0.00021369,2]
[362626282,1748380257171,-441.93,0.00021369,2]
[362626283,1748380257181,-1210.84,0.00021369,2]
[362626284,1748380257190,-430.0,0.00021369,2]
[362626285,1748380257199,-430.0,0.00021369,2]
[362626286,1748380257209,-430.0,0.00021369,2]
[362626287,1748380257218,-430.0,0.00021369,2]
[362626288,1748380257228,-626.26,0.00021369,2]
[362626290,1748380257237,-430.0,0.00021369,2]
[362626292,1748380257247,-430.0,0.00021369,2]
[362626294,1748380257256,-430.0,0.00021369,2]
[362626295,1748380257265,-430.0,0.00021369,2]
[362626297,1748380257275,-430.0,0.00021369,2]
[362626299,1748380257284,-1491.83,0.00021369,2]
[362626301,1748380257294,-945.81,0.00021369,2]
[362626304,1748380257303,-151.0,0.000214,4]
[362626305,1748380257315,-2846.06634161,0.00021452,5]
[362626307,1748380257325,-158.3360012,0.00021507,2]
[362626309,1748380257334,-182.4381755,0.00021507,2]
[362626311,1748380257343,-571.8642545,0.00021507,2]
[362626313,1748380257352,-500.0,0.00021571,2]
[362626315,1748380257362,-1543.29779217,0.00021573,2]
[362626317,1748380257373,-501.04890246,0.0002158,2]
[362626319,1748380257382,-500.0,0.0002158,2]
[362626321,1748380257394,-501.91115627,0.00021594,2]
[362626323,1748380257404,-500.52199297,0.00021594,2]
[362626325,1748380257413,-160.0,0.00021607,3]
[362626328,1748380257422,-11445.85,0.00021607,2]
[362626330,1748380257432,-2846.06634161,0.00021624,5]
[362626332,1748380257442,-430.0,0.00021643,2]
[362626334,1748380257451,-430.0,0.00021643,2]
[362626336,1748380257460,-430.0,0.00021643,2]
[362626338,1748380257470,-430.0,0.00021643,2]
[362626340,1748380257479,-430.0,0.00021643,2]
[362626342,1748380257488,-489.24,0.00021643,2]
[362626344,1748380257497,-604.56,0.00021643,2]
[362626346,1748380257507,-1698.09,0.00021643,2]
[362626348,1748380257517,-430.0,0.00021643,2]
[362626350,1748380257527,-1719.24,0.00021643,2]
[362626352,1748380257536,-430.0,0.00021643,2]
[362626354,1748380257546,-594.93,0.00021643,2]
[362626356,1748380257555,-430.0,0.00021643,2]
[362626358,1748380257565,-430.0,0.00021643,2]
[362626360,1748380257574,-351.39642337,0.00021643,2]
[362626362,1748380257586,-450.76,0.00021643,2]
[362626364,1748380257595,-1234.96,0.00021643,2]
[362626366,1748380257604,-589.76,0.00021643,2]
[362626368,1748380257614,-3137.36,0.00021643,2]
[362626370,1748380257624,-430.0,0.00021643,2]
[362626372,1748380257634,-610.53,0.00021643,2]
[362626374,1748380257644,-430.0,0.00021643,2]
[362626376,1748380257654,-1076.95,0.00021643,2]
[362626379,1748380257664,-1977.74,0.00021643,2]
[362626381,1748380257675,-430.0,0.00021643,2]
[362626383,1748380257684,-800.9,0.00021643,2]
[362626385,1748380257693,-430.0,0.00021643,2]
[362626387,1748380257703,-488.74,0.00021643,2]
[362626389,1748380257712,-430.0,0.00021643,2]
[362626391,1748380257722,-430.0,0.00021643,2]
[362626393,1748380257731,-430.0,0.00021643,2]
[362626395,1748380257741,-523.7,0.00021643,2]
[362626397,1748380257751,-430.0,0.00021643,2]
[362626399,1748380257761,-712.35,0.00021643,2]
[362626401,1748380257770,-430.0,0.00021643,2]
[362626403,1748380257780,-535.44,0.00021643,2]
[362626405,1748380257790,-933.8,0.00021643,2]
[362626407,1748380257799,-441.93,0.00021643,2]
[362626409,1748380257810,-1210.84,0.00021643,2]
[362626411,1748380257820,-430.0,0.00021643,2]
[362626413,1748380257831,-430.0,0.00021643,2]
[362626415,1748380257841,-430.0,0.00021643,2]
[362626417,1748380257850,-430.0,0.00021643,2]
[362626419,1748380257859,-626.26,0.00021643,2]
[362626421,1748380257869,-430.0,0.00021643,2]
[362626423,1748380257879,-430.0,0.00021643,2]
[362626425,1748380257888,-430.0,0.00021643,2]
[362626427,1748380257898,-430.0,0.00021643,2]
[362626429,1748380257907,-430.0,0.00021643,2]
[362626431,1748380257918,-1491.83,0.00021643,2]
[362626433,1748380257927,-945.81,0.00021643,2]
[362626435,1748380257937,-151.0,0.000217,4]
[362626437,1748380257947,-151.0,0.000217,4]
[362626439,1748380257957,-3695.69825899,0.0002178,2]
[362626441,1748380257967,-2846.06634161,0.00021797,6]
[362626443,1748380257976,-151.0,0.000218,4]
[362626445,1748380257986,-3000.0,0.000218,2]
[362626447,1748380257996,-3000.0,0.0002181,2]
[362626449,1748380258005,-3000.0,0.0002182,2]
[362626452,1748380258019,-3000.0,0.0002183,2]
[362626454,1748380258028,-3000.0,0.0002184,2]
[362626456,1748380258038,-3000.0,0.0002185,2]
[362626458,1748380258047,-3000.0,0.0002186,2]
[362626460,1748380258057,-3000.0,0.0002187,2]
[362626462,1748380258067,-3000.0,0.0002188,2]
[362626464,1748380258077,-3000.0,0.0002189,2]
[362626466,1748380258087,-3000.0,0.000219,2]
[362626468,1748380258097,-223.0315306,0.00021904,2]
[362626470,1748380258107,-3000.0,0.0002191,2]
[362626472,1748380258118,-1815.43196,0.00021916,2]
[362626474,1748380258128,-206.31,0.00021917,2]
[362626476,1748380258138,-430.0,0.00021917,2]
[362626478,1748380258148,-430.0,0.00021917,2]
[362626480,1748380258158,-430.0,0.00021917,2]
[362626483,1748380258168,-286.09131422,0.00021917,2]
[362626485,1748380258181,-430.0,0.00021917,2]
[362626487,1748380258191,-489.24,0.00021917,2]
[362626489,1748380258201,-604.56,0.00021917,2]
[362626491,1748380258211,-1698.09,0.00021917,2]
[362626493,1748380258221,-430.0,0.00021917,2]
[362626495,1748380258231,-1719.24,0.00021917,2]
[362626497,1748380258240,-430.0,0.00021917,2]
[362626499,1748380258250,-594.93,0.00021917,2]
[362626501,1748380258260,-430.0,0.00021917,2]
[362626503,1748380258270,-430.0,0.00021917,2]
[362626505,1748380258280,-450.76,0.00021917,2]
[362626507,1748380258289,-1234.96,0.00021917,2]
[362626510,1748380258300,-589.76,0.00021917,2]
[362626512,1748380258311,-3137.36,0.00021917,2]
[362626514,1748380258325,-430.0,0.00021917,2]
[362626516,1748380258334,-610.53,0.00021917,2]
[362626518,1748380258344,-430.0,0.00021917,2]
[362626520,1748380258354,-1076.95,0.00021917,2]
[362626522,1748380258363,-1977.74,0.00021917,2]
[362626524,1748380258373,-430.0,0.00021917,2]
[362626526,1748380258386,-800.9,0.00021917,2]
[362626528,1748380258396,-430.0,0.00021917,2]
[362626530,1748380258407,-488.74,0.00021917,2]
[362626532,1748380258417,-486.77,0.00021917,2]
[362626534,1748380258427,-430.0,0.00021917,2]
[362626536,1748380258437,-430.0,0.00021917,2]
[362626538,1748380258447,-430.0,0.00021917,2]
[362626540,1748380258456,-430.0,0.00021917,2]
[362626542,1748380258466,-349.79663406,0.00021917,2]
[362626544,1748380258476,-430.0,0.00021917,2]
[362626546,1748380258486,-430.0,0.00021917,2]
[362626548,1748380258497,-523.7,0.00021917,2]
[362626550,1748380258506,-430.0,0.00021917,2]
[362626552,1748380258515,-712.35,0.00021917,2]
[362626554,1748380258525,-430.0,0.00021917,2]
[362626556,1748380258534,-535.44,0.00021917,2]
[362626558,1748380258544,-933.8,0.00021917,2]
[362626560,1748380258555,-441.93,0.00021917,2]
[362626576,1748380258697,-1210.84,0.00021917,2]
[362626579,1748380258708,-430.0,0.00021917,2]
[362626581,1748380258719,-430.0,0.00021917,2]
[362626583,1748380258730,-430.0,0.00021917,2]
[362626585,1748380258740,-430.0,0.00021917,2]
[362626587,1748380258749,-626.26,0.00021917,2]
[362626589,1748380258759,-430.0,0.00021917,2]
[362626591,1748380258768,-430.0,0.00021917,2]
[362626593,1748380258778,-430.0,0.00021917,2]
[362626595,1748380258788,-430.0,0.00021917,2]
[362626597,1748380258798,-566.8,0.00021917,2]
[362626599,1748380258808,-1491.83,0.00021917,2]
[362626601,1748380258817,-945.81,0.00021917,2]
[362626603,1748380258827,-170.0,0.00021918,2]
[362626605,1748380258836,-170.0,0.00021918,2]
[362626607,1748380258846,-170.0,0.00021918,2]
[362626609,1748380258855,-170.0,0.00021918,2]
[362626611,1748380258865,-170.0,0.00021918,2]
[362626614,1748380258875,-174.66360675,0.00021918,2]
[362626616,1748380258884,-3000.0,0.0002192,2]
[362626618,1748380258894,-3000.0,0.0002193,2]
[362626620,1748380258903,-3000.0,0.0002194,2]
[362626622,1748380258912,-3000.0,0.0002195,2]
[362626624,1748380258922,-3000.0,0.0002196,2]
[362626626,1748380258931,-2846.06634161,0.00021969,6]
[362626628,1748380258941,-3000.0,0.0002197,2]
[362626629,1748380258951,-491.91242118,0.00021973,2]
[362626631,1748380258961,-500.47728795,0.00021973,2]
[362626634,1748380258971,-500.0,0.00021973,2]
[362626636,1748380258980,-569.33068025,0.00021973,2]
[362626637,1748380258990,-500.0,0.00021973,2]
[362626639,1748380258999,-501.21180626,0.00021973,2]
[362626642,1748380259009,-398.88088743,0.00021973,2]
[362626643,1748380259019,-501.02933483,0.00021973,2]
[362626645,1748380259028,-501.64985717,0.00021973,2]
[362626648,1748380259038,-639.18332239,0.00021973,2]
[362626649,1748380259047,-400.11856503,0.00021973,2]
[362626652,1748380259056,-648.6223048,0.00021973,2]
[362626654,1748380259066,-168.58031876,0.00021973,2]
[362626656,1748380259076,-500.0,0.00021973,2]
[362626658,1748380259085,-503.43694739,0.00021973,2]
[362626660,1748380259095,-525.40965106,0.00021973,2]
[362626662,1748380259104,-500.0,0.00021973,2]
[362626664,1748380259114,-500.363244,0.00021973,2]
[362626666,1748380259123,-502.35001893,0.00021973,2]
[362626668,1748380259133,-500.0,0.00021973,2]
[362626670,1748380259144,-500.0,0.00021973,2]
[362626672,1748380259154,-500.0,0.00021973,2]
[362626674,1748380259164,-503.95338977,0.00021973,2]
[362626676,1748380259173,-500.0,0.00021973,2]
[362626678,1748380259183,-500.0,0.00021973,2]
[362626680,1748380259193,-500.24037521,0.00021973,2]
[362626682,1748380259203,-500.95219021,0.00021973,2]
[362626684,1748380259213,-500.63681565,0.00021973,2]
[362626686,1748380259223,-500.238027,0.00021973,2]
[362626688,1748380259232,-500.0,0.00021973,2]
[362626690,1748380259242,-600.0,0.00021973,2]
[362626692,1748380259251,-272.0721736,0.00021973,2]
[362626694,1748380259261,-500.0,0.00021973,2]
[362626696,1748380259271,-500.0,0.00021973,2]
[362626698,1748380259280,-500.0,0.00021973,2]
[362626700,1748380259290,-500.36351833,0.00021973,2]
[362626702,1748380259299,-500.0,0.00021973,2]
[362626705,1748380259311,-500.0,0.00021973,2]
[362626707,1748380259324,-271.50060581,0.00021973,2]
[362626709,1748380259335,-500.0,0.00021973,2]
[362626711,1748380259345,-500.0,0.00021973,2]
[362626713,1748380259355,-500.47734297,0.00021973,2]
[362626715,1748380259366,-500.0,0.00021973,2]
[362626717,1748380259376,-239.66275632,0.00021973,2]
[362626719,1748380259386,-500.0,0.00021973,2]